bitfinex-derivatives/quotes_SOLF0:USTF0_20240911
["timestamp","ask_amount","ask_price","bid_price","bid_amount"]
[1726025851048,13.0213,134.02,133.95,10.33]
[1726025851447,13.0213,134.02,133.95,14.01149917]
[1726025851753,3.7322,133.97,133.95,14.01149917]
[1726025853560,3.7322,133.96,133.95,10.33]
[1726025857763,2.6913,134.02,133.81,9.66426354]
[1726025857764,3.7331,133.93,133.81,9.66426354]
[1726025858067,3.7331,133.93,133.92,10.33]
[1726025861859,3.7331,133.93,133.81,3.75578617]
[1726025861860,10.33,133.96,133.81,3.75578617]
[1726025862067,10.33,133.96,133.9,10.33]
[1726025862068,10.33,133.95,133.9,10.33]
[1726025862360,3.7342,133.9,133.89,10.33]
[1726025866663,3.7346,133.88,133.75,5.91207587]
[1726025866867,1.4113,133.96,133.86,10.33]
[1726025866868,10.33,133.93,133.86,10.33]
[1726025867164,2.7162,133.92,133.86,14.05553414]
[1726025867558,3.735,133.87,133.86,14.05553414]
[1726025869658,3.735,133.87,133.86,10.33]
[1726025870264,3.735,133.87,133.86,13.99296301]
[1726025870854,3.735,133.87,133.86,10.33]
[1726025871058,3.7353,133.86,133.85,10.33]
[1726025872565,10.33,133.91,133.84,3.81723628]
[1726025872762,11.6851,133.91,133.85,10.33]
[1726025872963,10.33,133.9,133.84,10.33]
[1726025873263,3.7353,133.85,133.84,10.33]
[1726025875254,3.7348,133.87,133.84,10.33]
[1726025875461,3.7348,133.87,133.86,10.33]
[1726025875970,3.7346,133.88,133.86,10.33]
[1726025876456,1.3551,133.91,133.86,10.33]
[1726025877263,3.7347,133.87,133.86,10.33]
[1726025879468,1.3551,133.91,133.86,10.33]
[1726025879670,2.7162,133.92,133.88,10.33]
[1726025885076,2.7162,133.92,133.89,10.33]
[1726025885974,2.7162,133.92,133.87,3.78884701]
[1726025885975,2.7162,133.92,133.87,10.33]
[1726025886278,13.0462,133.92,133.86,10.33]
[1726025886676,13.0462,133.92,133.86,13.98381742]
[1726025888274,13.0462,133.92,133.74,5.91283165]
[1726025888474,13.0462,133.92,133.75,1.3731918]
[1726025888670,1.3916,133.91,133.85,10.33]
[1726025890385,1.3916,133.91,133.73,5.91385185]
[1726025890386,10.33,133.88,133.73,5.91385185]
[1726025890572,10.33,133.88,133.81,10.33]
[1726025890573,2.7297,133.87,133.81,10.33]
[1726025890783,2.7297,133.87,133.81,14.12968619]
[1726025891482,2.7297,133.87,133.83,10.33]
[1726025891687,2.7297,133.87,133.84,10.33]
[1726025893190,3.7355,133.85,133.84,10.33]
[1726025898390,3.7359,133.83,133.69,9.57530682]
[1726025898593,2.7297,133.87,133.82,10.33]
[1726025898789,2.7297,133.87,133.83,10.33]
[1726025900186,3.7356,133.84,133.83,10.33]
[1726025905404,3.7356,133.84,133.82,3.82481739]
[1726025905693,3.7356,133.84,133.83,10.33]
[1726025906502,13.0597,133.87,133.7,5.91552522]
[1726025906694,10.33,133.86,133.8,3.74635576]
[1726025906896,10.33,133.84,133.8,3.74635576]
[1726025907600,10.33,133.84,133.79,10.33]
[1726025907601,3.7367,133.8,133.79,10.33]
[1726025924603,3.7372,133.78,133.77,14.07869072]
[1726025924900,3.7372,133.78,133.77,10.33]
[1726025925614,3.7375,133.77,133.76,14.02916267]
[1726025925814,12.9699,133.81,133.75,10.33]
[1726025926012,3.7378,133.76,133.75,10.33]
[1726025926310,3.7378,133.76,133.75,14.13793959]
[1726025926511,12.9699,133.81,133.75,14.13793959]
[1726025926820,3.7377,133.77,133.75,14.13793959]
[1726025928409,12.9699,133.81,133.64,5.91934514]
[1726025928614,10.33,133.79,133.73,10.33]
[1726025928912,10.33,133.79,133.73,14.04242967]
[1726025932111,10.33,133.79,133.64,5.92011051]
[1726025932303,10.33,133.79,133.72,10.33]
[1726025932506,10.33,133.79,133.72,14.05130584]
[1726025933709,10.33,133.78,133.72,14.05130584]
[1726025934913,10.33,133.77,133.71,10.33]
[1726025935212,2.6748,133.76,133.71,14.053635]
[1726025936506,2.6748,133.76,133.71,10.33]
[1726025936813,10.33,133.75,133.71,10.33]
[1726025939614,13.0048,133.76,133.71,10.33]
[1726025950022,2.6748,133.76,133.74,10.33]
[1726025950326,11.731,133.8,133.74,10.33]
[1726025950527,11.731,133.8,133.74,14.0683]
[1726025950528,2.5837,133.79,133.74,14.0683]
[1726025951528,2.5837,133.79,133.74,10.33]
[1726025952623,10.33,133.78,133.74,10.33]
[1726025957927,2.5837,133.79,133.74,10.33]
[1726025961427,10.33,133.78,133.72,14.10159199]
[1726025961628,10.33,133.78,133.72,10.33]
[1726025962239,10.33,133.78,133.72,14.09860369]
[1726025965850,2.5837,133.79,133.74,10.33]
[1726025968253,2.5837,133.79,133.75,10.33]
[1726025969149,1.2864,133.79,133.76,10.33]
[1726025969342,14.38,133.84,133.77,10.33]
[1726025973447,4.05,133.84,133.8,10.33]
[1726025978253,2.666,133.84,133.8,10.33]
[1726025978849,10.33,133.87,133.8,10.33]
[1726025981648,14.3505,133.87,133.8,10.33]
[1726025982648,3.7363,133.82,133.8,10.33]
[1726025983156,14.3505,133.87,133.81,10.33]
[1726025983157,3.7359,133.83,133.81,10.33]
[1726025996559,4.0205,133.87,133.81,10.33]
[1726025996762,2.7443,133.87,133.83,10.33]
[1726026000678,2.7443,133.87,133.69,5.915677]
[1726026000866,2.7443,133.87,133.81,10.33]
[1726026001067,2.7443,133.87,133.79,3.75625981]
[1726026001267,2.7443,133.87,133.81,10.33]
[1726026002866,13.0743,133.87,133.81,10.33]
[1726026003068,13.0743,133.87,133.8,10.33]
[1726026004764,16.81701191,133.87,133.8,10.33]
[1726026005169,10.33,133.85,133.8,10.33]
[1726026005477,10.33,133.85,133.79,10.33]
[1726026005774,1.3729,133.84,133.79,10.33]
[1726026008274,11.7029,133.84,133.76,3.67710825]
[1726026008476,11.7029,133.84,133.78,10.33]
[1726026010083,6.48701191,133.87,133.8,10.33]
[1726026010269,16.81701191,133.87,133.81,10.33]
[1726026010475,13.0743,133.87,133.81,10.33]
[1726026013387,13.0743,133.87,133.78,3.7371]
[1726026013589,13.0743,133.87,133.8,10.33]
[1726026014282,10.33,133.86,133.8,10.33]
[1726026015086,10.33,133.86,133.76,3.7377]
[1726026015280,10.33,133.85,133.76,3.7377]
[1726026015487,10.33,133.85,133.78,10.33]
[1726026015786,1.3587,133.84,133.78,10.33]
[1726026016778,1.3587,133.84,133.76,3.83028037]
[1726026016988,1.3587,133.84,133.8,10.33]
[1726026018989,1.3587,133.84,133.73,5.91738369]
[1726026019192,1.3587,133.84,133.78,10.33]
[1726026019691,11.6887,133.84,133.78,10.33]
[1726026020293,10.33,133.83,133.76,10.33]
[1726026020586,10.33,133.81,133.75,10.33]
[1726026021289,10.33,133.81,133.73,3.69664756]
[1726026021490,10.33,133.81,133.75,10.33]
[1726026021802,10.33,133.81,133.62,5.92013431]
[1726026021985,10.33,133.81,133.6,17.92177568]
[1726026021986,10.33,133.81,133.74,10.33]
[1726026023488,10.33,133.79,133.72,10.33]
[1726026024083,3.7388,133.73,133.72,10.33]
[1726026025194,3.7385,133.74,133.72,10.33]
[1726026025588,2.6893,133.77,133.72,10.33]
[1726026026094,3.7386,133.73,133.72,10.33]
[1726026027094,3.739,133.72,133.71,10.33]
[1726026028097,3.7388,133.73,133.71,10.33]
[1726026028399,3.7388,133.73,133.72,10.33]
[1726026030896,10.33,133.81,133.72,10.33]
[1726026031092,4.0603,133.83,133.75,10.33]
[1726026031397,14.3903,133.83,133.77,10.33]
[1726026032002,14.3903,133.83,133.75,10.33]
[1726026033499,14.3903,133.83,133.77,10.33]
[1726026035405,10.33,133.81,133.73,3.76467948]
[1726026035705,10.33,133.81,133.75,10.33]
[1726026037308,10.33,133.81,133.76,10.33]
[1726026038405,14.3903,133.83,133.76,10.33]
[1726026039096,14.3903,133.83,133.73,3.65625588]
[1726026039300,14.3903,133.83,133.77,10.33]
[1726026040996,10.33,133.81,133.75,10.33]
[1726026041202,14.07822306,133.81,133.75,10.33]
[1726026058716,3.74822306,133.81,133.75,10.33]
[1726026058917,4.0603,133.83,133.78,10.33]
[1726026064819,4.0603,133.83,133.8,10.33]
[1726026066218,4.0603,133.83,133.72,3.70775063]
[1726026066422,4.0603,133.83,133.78,10.33]
[1726026069028,4.0603,133.83,133.79,10.33]
[1726026071627,14.3903,133.83,133.75,3.80402273]
[1726026071834,14.3903,133.83,133.77,10.33]
[1726026073630,10.33,133.82,133.77,10.33]
[1726026075341,4.0603,133.83,133.78,10.33]
[1726026085855,1.3146,133.87,133.81,10.33]
[1726026086151,3.9818,133.87,133.81,10.33]
[1726026096058,2.6672,133.87,133.84,10.33]
[1726026096257,2.6672,133.87,133.82,10.33]
[1726026113274,2.6672,133.87,133.8,3.7365]
[1726026113667,2.6672,133.87,133.82,10.33]
[1726026116474,3.79214953,133.89,133.82,10.33]
[1726026116673,3.79214953,133.89,133.8,3.7365]
[1726026116861,10.33,133.88,133.82,10.33]
[1726026120871,10.33,133.88,133.78,3.7371]
[1726026121080,10.33,133.87,133.8,10.33]
[1726026121378,10.33,133.86,133.77,3.7374]
[1726026121573,10.33,133.86,133.8,10.33]
[1726026122067,10.33,133.85,133.75,3.82268541]
[1726026122272,11.7141,133.85,133.71,5.91815652]
[1726026122472,11.7141,133.85,133.78,10.33]
[1726026122673,3.72401816,133.84,133.78,10.33]
[1726026125987,10.33,133.83,133.67,5.91878572]
[1726026126278,10.33,133.83,133.77,10.33]
[1726026126475,14.07270928,133.83,133.77,10.33]
[1726026126872,14.07270928,133.83,133.71,5.91878572]
[1726026127073,14.07270928,133.83,133.77,10.33]
[1726026127669,14.07270928,133.83,133.78,10.33]
[1726026130980,3.74270928,133.83,133.78,10.33]
[1726026131282,14.07270928,133.83,133.78,10.33]
[1726026138081,3.74270928,133.83,133.78,10.33]
[1726026138281,14.07270928,133.83,133.78,10.33]
[1726026145097,14.07270928,133.83,133.76,10.33]
[1726026146689,3.74270928,133.83,133.76,10.33]
[1726026146890,10.33,133.82,133.76,10.33]
[1726026150512,10.33,133.81,133.73,3.80655051]
[1726026150811,10.33,133.81,133.75,10.33]
[1726026151199,3.7379,133.76,133.75,10.33]
[1726026153201,14.07270928,133.83,133.75,10.33]
[1726026153404,14.07270928,133.83,133.77,10.33]
[1726026159919,3.74270928,133.83,133.77,10.33]
[1726026160216,10.33,133.82,133.77,10.33]
[1726026160916,14.15776555,133.82,133.77,10.33]
[1726026162915,14.15776555,133.82,133.76,10.33]
[1726026165415,10.33,133.81,133.76,10.33]
[1726026165620,10.33,133.81,133.74,10.33]
[1726026166221,3.738,133.76,133.74,10.33]
[1726026167321,3.7381,133.75,133.74,10.33]
[1726026178428,3.7381,133.75,133.72,3.69204307]
[1726026178629,3.7381,133.75,133.65,5.92077732]
[1726026178831,3.7381,133.75,133.74,10.33]
[1726026179031,3.7381,133.75,133.72,3.66961505]
[1726026179218,3.7381,133.75,133.74,10.33]
[1726026179420,3.7379,133.76,133.74,10.33]
[1726026179621,232.7865,133.84,133.75,14.01905672]
[1726026179931,12.9531,133.83,133.75,10.33]
[1726026180127,3.7377,133.77,133.75,10.33]
[1726026180321,3.73728701,133.82,133.75,10.33]
[1726026180521,14.06728701,133.82,133.75,10.33]
[1726026180829,14.06728701,133.82,133.74,10.33]
[1726026181829,3.738,133.76,133.74,10.33]
[1726026182224,14.06728701,133.82,133.74,10.33]
[1726026182625,3.73728701,133.82,133.76,10.33]
[1726026183231,3.7378,133.77,133.76,10.33]
[1726026188433,16.71768271,133.83,133.66,5.9198533]
[1726026188434,10.33,133.8,133.66,5.9198533]
[1726026188635,11.6749,133.79,133.73,10.33]
[1726026188934,3.7389,133.73,133.71,14.0418606]
[1726026189236,3.7389,133.73,133.72,10.33]
[1726026196842,3.7391,133.72,133.62,11.2249]
[1726026197044,3.7391,133.72,133.71,10.33]
[1726026203343,2.7492,133.78,133.71,10.33]
[1726026203544,2.7492,133.78,133.73,10.33]
[1726026204746,3.7384,133.74,133.73,10.33]
[1726026211447,1.3666,133.78,133.73,10.33]
[1726026211652,1.3666,133.78,133.76,10.33]
[1726026212050,1.3666,133.78,133.74,10.33]
[1726026218158,1.3666,133.78,133.74,10.27547419]
[1726026219754,1.3666,133.78,133.73,3.78383997]
[1726026219755,1.3666,133.78,133.76,10.33]
[1726026221156,1.3666,133.78,133.6,5.92066369]
[1726026221157,1.3666,133.78,133.61,5.92066369]
[1726026221351,1.3666,133.78,133.73,10.33]
[1726026223561,1.3666,133.78,133.71,3.80113058]
[1726026223761,1.3666,133.78,133.73,10.33]
[1726026226367,1.3666,133.78,133.71,3.75373915]
[1726026226564,1.3666,133.78,133.58,3.47124567]
[1726026226565,1.3666,133.78,133.73,10.33]
[1726026227166,1.3666,133.78,133.64,5.92131114]
[1726026227167,10.33,133.77,133.64,5.92131114]
[1726026227366,11.6822,133.77,133.7,10.33]
[1726026227766,3.7392,133.71,133.7,10.33]
[1726026228359,3.7392,133.71,133.69,3.67661981]
[1726026228665,3.7392,133.71,133.58,5.92230388]
[1726026228666,3.7392,133.71,133.7,10.33]
[1726026229171,10.33,133.74,133.61,5.92230388]
[1726026229374,10.33,133.74,133.67,10.33]
[1726026229375,12.9607,133.73,133.67,10.33]
[1726026229769,2.6307,133.73,133.68,10.33]
[1726026230367,1.2922,133.73,133.68,13.97902165]
[1726026230872,1.2922,133.73,133.68,10.33]
[1726026230873,3.7397,133.7,133.68,10.33]
[1726026231074,1.2922,133.73,133.69,10.33]
[1726026231272,1.2922,133.73,133.7,10.33]
[1726026231571,3.7392,133.71,133.7,10.33]
[1726026232064,3.7392,133.71,133.68,3.75149495]
[1726026232270,1.2922,133.73,133.53,21.40548342]
[1726026232467,1.2922,133.73,133.7,10.33]
[1726026233470,1.2922,133.73,133.66,3.83332086]
[1726026233768,1.2922,133.73,133.52,7.24209926]
[1726026233769,1.2922,133.73,133.69,10.33]
[1726026244878,1.2922,133.73,133.7,10.33]
[1726026245277,1.2766,133.74,133.72,10.33]
[1726026247277,1.3385,133.77,133.72,10.33]
[1726026249776,1.4121,133.78,133.73,10.33]
[1726026250685,1.4121,133.78,133.74,10.33]
[1726026252583,1.4121,133.78,133.73,10.33]
[1726026252784,11.7421,133.78,133.7,3.7393]
[1726026253091,11.7421,133.78,133.72,10.33]
[1726026256787,11.7421,133.78,133.69,3.78431959]
[1726026257096,11.7421,133.78,133.71,10.33]
[1726026257097,1.3812,133.77,133.71,10.33]
[1726026259297,11.7112,133.77,133.7,10.33]
[1726026259492,1.3632,133.76,133.7,10.33]
[1726026260191,11.6932,133.76,133.7,10.33]
[1726026260393,15.37934492,133.76,133.64,3.67866568]
[1726026260696,15.37934492,133.76,133.53,7.80842435]
[1726026260697,15.37934492,133.76,133.69,10.33]
[1726026262187,10.33,133.74,133.64,3.70185133]
[1726026262393,10.33,133.71,133.65,10.33]
[1726026262601,10.33,133.72,133.66,10.33]
[1726026263903,10.33,133.71,133.59,5.92467723]
[1726026264088,10.33,133.71,133.57,3.73344804]
[1726026264089,3.7406,133.66,133.65,10.33]
[1726026266395,1.3471,133.72,133.65,10.33]
[1726026266609,1.3471,133.72,133.67,10.33]
[1726026266900,1.3116,133.73,133.7,10.33]
[1726026267098,1.3632,133.76,133.71,10.33]
[1726026267304,5.10852255,133.76,133.7,10.33]
[1726026267509,10.33,133.75,133.7,10.33]
[1726026267704,11.6534,133.75,133.7,10.33]
[1726026268093,11.6534,133.75,133.69,10.33]
[1726026271709,11.6534,133.75,133.7,10.33]
[1726026277910,1.3234,133.75,133.7,10.33]
[1726026283322,2.7052,133.76,133.72,10.33]
[1726026283911,1.342,133.76,133.72,10.33]
[1726026291726,10.33,133.79,133.72,10.33]
[1726026291923,11.6866,133.79,133.73,10.33]
[1726026292530,1.3566,133.79,133.73,10.33]
[1726026292832,1.3566,133.79,133.74,10.33]
[1726026293827,1.3064,133.8,133.76,10.33]
[1726026299628,1.3064,133.8,133.75,10.33]
[1726026300329,10.33,133.79,133.75,10.33]
[1726026300527,10.33,133.78,133.72,10.33]
[1726026300836,10.33,133.77,133.71,10.33]
[1726026302324,10.33,133.75,133.71,10.33]
[1726026303536,10.33,133.75,133.69,10.33]
[1726026306340,13.0457,133.75,133.69,10.33]
[1726026307539,2.7157,133.75,133.7,10.33]
[1726026307742,2.7157,133.75,133.71,10.33]
[1726026309235,11.7352,133.79,133.73,10.33]
[1726026309837,11.7352,133.79,133.74,10.33]
[1726026309838,1.4052,133.79,133.74,10.33]
[1726026310739,11.7352,133.79,133.74,10.33]
[1726026311537,1.4052,133.79,133.74,10.33]
[1726026313943,13.0815,133.8,133.75,10.33]
[1726026318343,2.7515,133.8,133.75,10.33]
[1726026318647,128.56562897,133.81,133.75,10.33]
[1726026318843,131.17502897,133.81,133.75,10.33]
[1726026322143,131.17502897,133.81,133.77,10.33]
[1726026322144,120.84502897,133.81,133.77,10.33]
[1726026322347,120.84502897,133.81,133.78,10.33]
[1726026329251,118.23562897,133.81,133.78,10.33]
[1726026332245,1.3111,133.83,133.78,10.33]
[1726026332851,11.6411,133.83,133.78,10.33]
[1726026333057,12.9293,133.83,133.78,10.33]
[1726026334356,3.737,133.79,133.78,10.33]
[1726026337051,2.5993,133.83,133.78,10.33]
[1726026337355,2.5993,133.83,133.75,3.75411307]
[1726026337356,2.5993,133.83,133.8,10.33]
[1726026337555,2.5993,133.83,133.66,11.14485555]
[1726026337556,3.82943606,133.86,133.81,10.33]
[1726026337859,1.3001,133.87,133.81,10.33]
[1726026338056,3.80364232,133.86,133.81,10.33]
[1726026338259,1.3001,133.87,133.83,10.33]
[1726026339051,1.3001,133.87,133.84,10.33]
[1726026339457,1.3001,133.87,133.68,5.91782094]
[1726026339458,11.6301,133.87,133.68,5.91782094]
[1726026339763,11.6301,133.87,133.81,10.33]
[1726026340557,11.6301,133.87,133.79,10.33]
[1726026340558,10.33,133.86,133.79,10.33]
[1726026340755,10.33,133.83,133.75,3.66487254]
[1726026340953,10.33,133.83,133.77,10.33]
[1726026341348,1.3404,133.85,133.78,10.33]
[1726026341549,10.33,133.84,133.78,10.33]
[1726026342357,1.3404,133.85,133.8,10.33]
[1726026342754,11.6704,133.85,133.8,10.33]
[1726026345358,11.6704,133.85,133.78,10.33]
[1726026347854,11.6704,133.85,133.8,10.33]
[1726026348058,1.3404,133.85,133.81,10.33]
[1726026348265,1.3404,133.85,133.82,10.33]
[1726026348657,1.3001,133.87,133.82,10.33]
[1726026350371,1.3001,133.87,133.84,10.33]
[1726026357472,1.3001,133.87,133.76,3.75018573]
[1726026357473,1.3001,133.87,133.85,10.33]
[1726026357870,1.3001,133.87,133.67,5.91677087]
[1726026358173,1.3001,133.87,133.68,1.37388324]
[1726026358374,11.6301,133.87,133.81,10.33]
[1726026360975,11.6301,133.87,133.67,5.91677087]
[1726026361179,11.6301,133.87,133.8,10.33]
[1726026361374,11.6301,133.87,133.81,10.33]
[1726026362367,1.3001,133.87,133.83,10.33]
[1726026365678,11.6301,133.87,133.8,10.33]
[1726026366284,11.6301,133.87,133.82,10.33]
[1726026367483,1.3001,133.87,133.83,10.33]
[1726026370086,11.6301,133.87,133.82,10.33]
[1726026372082,1.3001,133.87,133.82,10.33]
[1726026373001,11.6301,133.87,133.81,10.33]
[1726026375293,10.33,133.86,133.7,5.91751266]
[1726026375492,10.33,133.85,133.78,10.33]
[1726026375695,1.3199,133.85,133.8,10.33]
[1726026384896,1.3199,133.85,133.76,3.69477887]
[1726026384897,1.3199,133.85,133.81,10.33]
[1726026385099,1.3001,133.87,133.82,10.33]
[1726026386002,3.80782607,133.89,133.82,10.33]
[1726026386203,10.33,133.9,133.84,10.33]
[1726026386798,3.81981308,133.89,133.84,10.33]
[1726026387297,10.33,133.9,133.84,10.33]
[1726026387808,3.74196393,133.89,133.84,10.33]
[1726026388001,10.33,133.9,133.84,10.33]
[1726026389406,3.78120354,133.89,133.84,10.33]
[1726026393602,3.78120354,133.89,133.8,7.55603925]
[1726026393799,2.6639,133.94,133.85,10.33]
[1726026394000,10.33,133.92,133.85,10.33]
[1726026395101,10.33,133.91,133.84,10.33]
[1726026395299,10.33,133.88,133.82,10.33]
[1726026395504,14.14662555,133.87,133.77,5.91617516]
[1726026395707,10.33,133.87,133.81,10.33]
[1726026396509,10.33,133.84,133.77,5.91617516]
[1726026396707,10.33,133.83,133.77,5.91617516]
[1726026396922,10.33,133.81,133.77,5.91617516]
[1726026397209,3.7372,133.78,133.77,5.91617516]
[1726026404617,3.7384,133.74,133.72,10.33]
[1726026405910,10.33,133.79,133.72,10.33]
[1726026406418,3.7385,133.74,133.72,10.33]
[1726026407116,3.7386,133.73,133.72,10.33]
[1726026407817,6.48826848,133.82,133.72,10.33]
[1726026407818,3.7385,133.74,133.72,10.33]
[1726026408407,10.33,133.77,133.6,5.92155934]
[1726026408715,7.473,133.81,133.7,10.33]
[1726026409017,6.48826848,133.82,133.68,10.33]
[1726026409018,3.7399,133.69,133.68,10.33]
[1726026409812,3.7399,133.69,133.68,14.04250093]
[1726026410919,10.33,133.72,133.66,10.33]
[1726026412209,3.7405,133.67,133.66,10.33]
[1726026413413,3.7408,133.66,133.65,10.33]
[1726026413811,10.33,133.72,133.65,10.33]
[1726026414014,3.7404,133.67,133.66,10.33]
[1726026415324,3.7401,133.68,133.66,10.33]
[1726026417422,10.33,133.74,133.67,10.33]
[1726026417619,10.33,133.75,133.69,10.33]
[1726026418519,4.0374,133.76,133.69,10.33]
[1726026418717,14.3674,133.76,133.69,10.33]
[1726026418923,14.3674,133.76,133.7,10.33]
[1726026419322,2.7316,133.76,133.7,10.33]
[1726026422129,2.7316,133.76,133.69,7.54403969]
[1726026422130,10.33,133.74,133.57,5.92293374]
[1726026422331,10.33,133.74,133.67,10.33]
[1726026422530,10.33,133.74,133.67,14.09318742]
[1726026425837,2.7316,133.76,133.69,10.33]
[1726026426130,2.7316,133.76,133.7,10.33]
[1726026428728,2.7316,133.76,133.7,14.0694]
[1726026429132,2.7316,133.76,133.7,10.33]
[1726026430031,2.7316,133.76,133.7,14.0695]
[1726026430936,2.7316,133.76,133.72,10.33]
[1726026431642,10.33,133.79,133.72,10.33]
[1726026432033,10.33,133.74,133.62,7.4831]
[1726026432227,10.33,133.74,133.68,10.33]
[1726026435038,10.33,133.76,133.7,10.33]
[1726026438832,2.7939,133.8,133.71,10.33]
[1726026439037,10.33,133.79,133.72,10.33]
[1726026440036,2.7939,133.8,133.72,10.33]
[1726026440233,13.1239,133.8,133.74,10.33]
[1726026441844,2.7939,133.8,133.74,10.33]
[1726026443248,2.7939,133.8,133.75,10.33]
[1726026448447,13.1239,133.8,133.74,10.33]
[1726026448637,13.1239,133.8,133.71,3.74990651]
[1726026448638,10.33,133.77,133.71,3.74990651]
[1726026448838,10.33,133.77,133.71,14.07990651]
[1726026449448,16.77246779,133.8,133.73,10.33]
[1726026452942,2.7939,133.8,133.73,10.33]
[1726026453245,2.7939,133.8,133.72,7.5710741]
[1726026453246,2.7939,133.8,133.75,10.33]
[1726026453450,10.33,133.79,133.72,3.8321741]
[1726026453649,10.33,133.79,133.7,3.7393]
[1726026453846,10.33,133.79,133.73,10.33]
[1726026454355,2.7939,133.8,133.74,10.33]
[1726026454356,13.1239,133.8,133.74,10.33]
[1726026457760,13.99958408,133.82,133.76,10.33]
[1726026458254,10.33,133.82,133.76,10.33]
[1726026458650,14.00502513,133.82,133.76,10.33]
[1726026460558,4.0072,133.85,133.76,10.33]
[1726026460758,4.0072,133.85,133.74,3.7383]
[1726026460759,10.33,133.83,133.77,10.33]
[1726026465362,7.65717154,133.85,133.77,10.33]
[1726026465557,17.98717154,133.85,133.79,10.33]
[1726026468972,10.33,133.84,133.79,10.33]
[1726026470877,10.33,133.84,133.75,3.738]
[1726026471177,10.33,133.81,133.76,10.33]
[1726026473373,10.33,133.83,133.76,10.33]
[1726026473569,7.65717154,133.85,133.77,10.33]
[1726026473774,10.33,133.84,133.77,10.33]
[1726026484086,4.0072,133.85,133.8,10.33]
[1726026484491,14.3372,133.85,133.78,10.33]
[1726026484983,10.33,133.83,133.78,10.33]
[1726026486285,10.33,133.83,133.74,3.78823001]
[1726026486286,10.33,133.83,133.77,10.33]
[1726026490194,4.0072,133.85,133.77,10.33]
[1726026490395,10.33,133.83,133.77,10.33]
[1726026490894,10.33,133.83,133.78,10.33]
[1726026491683,4.0072,133.85,133.78,10.33]
[1726026491892,10.33,133.84,133.78,10.33]
[1726026494294,10.33,133.83,133.77,10.33]
[1726026495000,4.0072,133.85,133.77,10.33]
[1726026495387,10.33,133.84,133.77,10.33]
[1726026499698,10.33,133.84,133.74,3.78823001]
[1726026499699,4.0072,133.85,133.78,10.33]
[1726026502599,14.3372,133.85,133.8,10.33]
[1726026504810,14.3372,133.85,133.79,10.33]
[1726026508808,4.0072,133.85,133.79,10.33]
[1726026517025,4.0072,133.85,133.8,10.33]
[1726026517226,2.7023,133.85,133.82,10.33]
[1726026518126,2.7023,133.85,133.75,5.91743645]
[1726026518320,1.3801,133.85,133.78,3.7371]
[1726026518525,1.3801,133.85,133.81,10.33]
[1726026520430,1.3801,133.85,133.78,7.5267232]
[1726026520629,1.3801,133.85,133.74,5.9172986]
[1726026520630,10.33,133.83,133.74,3.71710731]